[Event "*** Titled Tuesday Blitz"]
[Site "Chess.com"]
[Date "2018.11.06"]
[Round "3"]
[White "DiogenesSinopeus"]
[Black "Malev212"]
[Result "0-1"]
[WhiteElo "2421"]
[BlackElo "2617"]
[TimeControl "180+2"]
[EndTime "13:35:35 PST"]
[Termination "Malev212 won by resignation"]

1. d4 {[%clk 0:03:01.9]} 1... g6 {[%clk 0:03:01.2]} 2. c4 {[%clk 0:03:02.7]}
2... Bg7 {[%clk 0:03:02.6]} 3. Nc3 {[%clk 0:03:04]} 3... d6 {[%clk 0:03:04.1]}
4. Nf3 {[%clk 0:03:04.9]} 4... Nf6 {[%clk 0:03:05.6]} 5. e4 {[%clk 0:03:05.8]}
5... O-O {[%clk 0:03:07.5]} 6. Be2 {[%clk 0:03:07.2]} 6... Nc6 {[%clk
0:03:07.9]} 7. d5 {[%clk 0:03:07]} 7... Nb4 {[%clk 0:03:08.4]} 8. O-O {[%clk
0:03:03.2]} 8... a5 {[%clk 0:03:08.7]} 9. h3 {[%clk 0:02:59]} 9... Na6 {[%clk
0:03:03.1]} 10. Re1 {[%clk 0:02:51.7]} 10... Nc5 {[%clk 0:03:04]} 11. Bf1 {[%clk
0:02:53.3]} 11... e6 {[%clk 0:03:04.4]} 12. Bg5 {[%clk 0:02:51.4]} 12... h6
{[%clk 0:03:04.5]} 13. Bh4 {[%clk 0:02:52.4]} 13... Re8 {[%clk 0:03:04.7]} 14.
Qc2 {[%clk 0:02:50.3]} 14... e5 {[%clk 0:03:00.5]} 15. b3 {[%clk 0:02:42.2]}
15... g5 {[%clk 0:03:01.2]} 16. Bg3 {[%clk 0:02:43]} 16... Nh5 {[%clk
0:03:02.5]} 17. a3 {[%clk 0:02:33.6]} 17... Rf8 {[%clk 0:02:51.4]} 18. b4 {[%clk
0:02:31]} 18... axb4 {[%clk 0:02:53.3]} 19. axb4 {[%clk 0:02:32.4]} 19... Rxa1
{[%clk 0:02:55]} 20. Rxa1 {[%clk 0:02:34]} 20... Na6 {[%clk 0:02:56.6]} 21. Rb1
{[%clk 0:02:23.8]} 21... f5 {[%clk 0:02:57.6]} 22. exf5 {[%clk 0:02:21]} 22...
Bxf5 {[%clk 0:02:57.9]} 23. Bd3 {[%clk 0:02:21]} 23... Bxd3 {[%clk 0:02:57.2]}
24. Qxd3 {[%clk 0:02:22.9]} 24... Nf4 {[%clk 0:02:58.3]} 25. Qc2 {[%clk
0:02:14.9]} 25... Nxh3+ {[%clk 0:02:56.9]} 26. Kh2 {[%clk 0:02:10.8]} 26... Nf4
{[%clk 0:02:57.1]} 27. Ne4 {[%clk 0:02:11.2]} 27... Qe8 {[%clk 0:02:50.8]} 28.
Kg1 {[%clk 0:02:05.9]} 28... Qh5 {[%clk 0:02:45.2]} 29. Rb3 {[%clk 0:01:52.2]}
29... Qg6 {[%clk 0:02:37.7]} 30. Nfd2 {[%clk 0:01:48.5]} 30... Ne2+ {[%clk
0:02:37.5]} 31. Kh1 {[%clk 0:01:46.5]} 31... Qh5+ {[%clk 0:02:35.6]} 32. Bh2
{[%clk 0:01:47.9]} 32... Nd4 {[%clk 0:02:35.6]} 33. Qd3 {[%clk 0:01:44.8]} 33...
Qd1+ {[%clk 0:02:31]} 34. Nf1 {[%clk 0:01:31.2]} 34... Qxb3 {[%clk 0:02:30.9]}
0-1

[Event "*** Titled Tuesday Blitz"]
[Site "Chess.com"]
[Date "2018.11.06"]
[Round "3"]
[White "dretch"]
[Black "NateSolon"]
[Result "1-0"]
[WhiteElo "2784"]
[BlackElo "2518"]
[TimeControl "180+2"]
[EndTime "13:35:41 PST"]
[Termination "dretch won by resignation"]

1. d4 {[%clk 0:03:01.9]} 1... d5 {[%clk 0:02:59.6]} 2. c4 {[%clk 0:03:02]} 2...
dxc4 {[%clk 0:03:00.8]} 3. e3 {[%clk 0:03:02.4]} 3... e5 {[%clk 0:03:00.8]} 4.
Bxc4 {[%clk 0:03:02.7]} 4... exd4 {[%clk 0:03:01.8]} 5. exd4 {[%clk 0:03:03.2]}
5... Bd6 {[%clk 0:03:02.9]} 6. Nf3 {[%clk 0:03:01]} 6... Nf6 {[%clk 0:03:03.9]}
7. Qe2+ {[%clk 0:03:01.7]} 7... Qe7 {[%clk 0:03:04.8]} 8. Qxe7+ {[%clk
0:03:01.9]} 8... Bxe7 {[%clk 0:03:06.7]} 9. O-O {[%clk 0:03:01.3]} 9... Nbd7
{[%clk 0:03:07.2]} 10. Re1 {[%clk 0:02:57.1]} 10... Nb6 {[%clk 0:03:08.1]} 11.
Bb3 {[%clk 0:02:55.9]} 11... Nfd5 {[%clk 0:03:08.2]} 12. Nc3 {[%clk 0:02:55.1]}
12... c6 {[%clk 0:03:09.2]} 13. Bg5 {[%clk 0:02:54.3]} 13... f6 {[%clk
0:03:09.6]} 14. Bd2 {[%clk 0:02:52]} 14... Kf7 {[%clk 0:03:08.9]} 15. h3 {[%clk
0:02:47.2]} 15... Be6 {[%clk 0:03:08.6]} 16. Re2 {[%clk 0:02:44.1]} 16... Rhe8
{[%clk 0:03:05]} 17. Rae1 {[%clk 0:02:43.6]} 17... Bf8 {[%clk 0:03:06.2]} 18.
Ne4 {[%clk 0:02:41.4]} 18... h6 {[%clk 0:02:47.7]} 19. a3 {[%clk 0:01:36]} 19...
Nc7 {[%clk 0:02:47.2]} 20. Bxe6+ {[%clk 0:01:12.5]} 20... Nxe6 {[%clk
0:02:49.1]} 21. Bb4 {[%clk 0:00:59]} 21... Bxb4 {[%clk 0:02:33.1]} 22. axb4
{[%clk 0:00:59.5]} 22... Nf4 {[%clk 0:02:03.3]} 23. Nd6+ {[%clk 0:01:00.1]} 1-0

[Event "*** Titled Tuesday Blitz"]
[Site "Chess.com"]
[Date "2018.11.06"]
[Round "3"]
[White "Zq1"]
[Black "bascheyaro"]
[Result "0-1"]
[WhiteElo "2491"]
[BlackElo "2720"]
[TimeControl "180+2"]
[EndTime "13:35:46 PST"]
[Termination "bascheyaro won by resignation"]

1. d4 {[%clk 0:02:58.8]} 1... e6 {[%clk 0:03:01]} 2. c4 {[%clk 0:02:59.2]} 2...
d5 {[%clk 0:03:02.1]} 3. Nc3 {[%clk 0:02:56]} 3... Nf6 {[%clk 0:03:03.2]} 4. Nf3
{[%clk 0:02:56.1]} 4... c6 {[%clk 0:03:01.7]} 5. e3 {[%clk 0:02:53.2]} 5... Bd6
{[%clk 0:03:02.3]} 6. Bd3 {[%clk 0:02:52.8]} 6... Nbd7 {[%clk 0:03:03.5]} 7. O-O
{[%clk 0:02:53]} 7... O-O {[%clk 0:03:04.6]} 8. e4 {[%clk 0:02:52.9]} 8... dxe4
{[%clk 0:03:05.7]} 9. Nxe4 {[%clk 0:02:53.4]} 9... Nxe4 {[%clk 0:03:07]} 10.
Bxe4 {[%clk 0:02:54.5]} 10... h6 {[%clk 0:03:07.8]} 11. Bc2 {[%clk 0:02:54.3]}
11... Nf6 {[%clk 0:03:07.4]} 12. b3 {[%clk 0:02:54.3]} 12... b6 {[%clk
0:03:06.9]} 13. Bb2 {[%clk 0:02:55]} 13... Bb7 {[%clk 0:03:06.9]} 14. Qd3 {[%clk
0:02:55.1]} 14... Re8 {[%clk 0:03:06.1]} 15. Rad1 {[%clk 0:02:55.2]} 15... Qe7
{[%clk 0:02:56.3]} 16. Rfe1 {[%clk 0:02:54.6]} 16... Rad8 {[%clk 0:02:52.8]} 17.
h3 {[%clk 0:02:42.4]} 17... Ba3 {[%clk 0:02:40.9]} 18. Ba1 {[%clk 0:02:41.5]}
18... Bb4 {[%clk 0:02:42.1]} 19. Re2 {[%clk 0:02:41.6]} 19... Kf8 {[%clk
0:02:42.8]} 20. Ne5 {[%clk 0:02:32.2]} 20... Bd6 {[%clk 0:02:28]} 21. Ng4 {[%clk
0:02:08.5]} 21... Nxg4 {[%clk 0:02:28.8]} 22. Qh7 {[%clk 0:01:56]} 22... Qh4
{[%clk 0:02:25]} 23. d5 {[%clk 0:01:44.3]} 23... Nf6 {[%clk 0:02:25.4]} 24. Bxf6
{[%clk 0:01:29.3]} 24... Qxf6 {[%clk 0:02:27.3]} 25. Rde1 {[%clk 0:01:22.9]}
25... e5 {[%clk 0:02:26.6]} 26. f4 {[%clk 0:01:15.7]} 26... g6 {[%clk
0:02:17.8]} 27. Qxh6+ {[%clk 0:01:11.3]} 27... Qg7 {[%clk 0:02:17]} 28. Qxg7+
{[%clk 0:01:12]} 28... Kxg7 {[%clk 0:02:18.9]} 29. fxe5 {[%clk 0:01:12.9]} 29...
Bc5+ {[%clk 0:02:20.5]} 30. Kh1 {[%clk 0:01:11.5]} 30... cxd5 {[%clk 0:02:22]}
0-1

[Event "*** Titled Tuesday Blitz"]
[Site "Chess.com"]
[Date "2018.11.06"]
[Round "3"]
[White "MatyChess1"]
[Black "jcibarra"]
[Result "1-0"]
[WhiteElo "2517"]
[BlackElo "2606"]
[TimeControl "180+2"]
[EndTime "13:35:51 PST"]
[Termination "MatyChess1 won by resignation"]

1. e4 {[%clk 0:03:01.9]} 1... e6 {[%clk 0:02:59.3]} 2. d3 {[%clk 0:03:01.8]}
2... d5 {[%clk 0:03:00.3]} 3. Qe2 {[%clk 0:03:03.2]} 3... Nc6 {[%clk 0:02:59.9]}
4. Nf3 {[%clk 0:03:04]} 4... Nf6 {[%clk 0:02:58.5]} 5. g3 {[%clk 0:03:03.6]}
5... dxe4 {[%clk 0:02:57.9]} 6. dxe4 {[%clk 0:03:05.5]} 6... Bc5 {[%clk
0:02:58.1]} 7. c3 {[%clk 0:03:06.3]} 7... a5 {[%clk 0:02:58.6]} 8. a4 {[%clk
0:03:04.5]} 8... b6 {[%clk 0:02:59.1]} 9. Qc2 {[%clk 0:03:01.6]} 9... Ng4 {[%clk
0:02:59.4]} 10. Bb5 {[%clk 0:02:58.4]} 10... Bb7 {[%clk 0:02:45.6]} 11. Nd4
{[%clk 0:02:56.3]} 11... Ne5 {[%clk 0:02:30.9]} 12. Be3 {[%clk 0:02:18.5]} 12...
O-O {[%clk 0:02:20.5]} 13. Nxc6 {[%clk 0:02:18.4]} 13... Bxc6 {[%clk 0:02:13.6]}
14. Bxc6 {[%clk 0:02:15.3]} 14... Nxc6 {[%clk 0:02:03.7]} 15. Bxc5 {[%clk
0:02:15.5]} 15... bxc5 {[%clk 0:02:05.6]} 16. Nd2 {[%clk 0:02:15.1]} 16... Ne5
{[%clk 0:02:05.2]} 17. f4 {[%clk 0:02:02.6]} 17... Qd3 {[%clk 0:01:55.1]} 18.
Qxd3 {[%clk 0:02:01]} 18... Nxd3+ {[%clk 0:01:56.2]} 19. Ke2 {[%clk 0:02:02.3]}
19... Nxb2 {[%clk 0:01:57.7]} 20. Ra2 {[%clk 0:02:01.9]} 20... Rab8 {[%clk
0:01:35.9]} 21. Rb1 {[%clk 0:02:01.5]} 21... Nd3 {[%clk 0:01:34.9]} 22. Kxd3
{[%clk 0:01:36.7]} 22... Rfd8+ {[%clk 0:01:35.8]} 23. Ke3 {[%clk 0:01:36.4]} 1-0

[Event "*** Titled Tuesday Blitz"]
[Site "Chess.com"]
[Date "2018.11.06"]
[Round "3"]
[White "GrigorGrigorov"]
[Black "severomorskij"]
[Result "0-1"]
[WhiteElo "2670"]
[BlackElo "2718"]
[TimeControl "180+2"]
[EndTime "13:36:34 PST"]
[Termination "severomorskij won by resignation"]

1. d4 {[%clk 0:03:01.9]} 1... Nf6 {[%clk 0:02:58.6]} 2. c4 {[%clk 0:03:02.2]}
2... e6 {[%clk 0:02:59.4]} 3. Nf3 {[%clk 0:03:01.3]} 3... Bb4+ {[%clk
0:02:58.6]} 4. Bd2 {[%clk 0:03:02]} 4... c5 {[%clk 0:02:59.4]} 5. Bxb4 {[%clk
0:03:01.7]} 5... cxb4 {[%clk 0:03:00.5]} 6. e3 {[%clk 0:03:02.4]} 6... O-O
{[%clk 0:03:01.4]} 7. Be2 {[%clk 0:03:03.7]} 7... d6 {[%clk 0:03:02.6]} 8. O-O
{[%clk 0:03:05]} 8... Nc6 {[%clk 0:03:03.9]} 9. a3 {[%clk 0:03:05.6]} 9... bxa3
{[%clk 0:03:05.1]} 10. Rxa3 {[%clk 0:03:04.7]} 10... e5 {[%clk 0:03:06.3]} 11.
Nc3 {[%clk 0:03:05.8]} 11... Bg4 {[%clk 0:03:07]} 12. h3 {[%clk 0:03:03.6]}
12... Bh5 {[%clk 0:03:07.6]} 13. Qd2 {[%clk 0:02:54.9]} 13... Re8 {[%clk
0:02:59.7]} 14. Rd1 {[%clk 0:02:54.7]} 14... e4 {[%clk 0:02:59.8]} 15. Ne1
{[%clk 0:02:53]} 15... Bxe2 {[%clk 0:03:00.2]} 16. Nxe2 {[%clk 0:02:54.2]} 16...
h6 {[%clk 0:02:46]} 17. b4 {[%clk 0:02:54.2]} 17... a6 {[%clk 0:02:42.4]} 18.
Rb1 {[%clk 0:02:50.4]} 18... Qd7 {[%clk 0:02:31.1]} 19. Nc2 {[%clk 0:02:50]}
19... Ne7 {[%clk 0:02:30]} 20. b5 {[%clk 0:02:33.5]} 20... axb5 {[%clk
0:02:21.4]} 21. Rxb5 {[%clk 0:02:30.7]} 21... Rxa3 {[%clk 0:02:12.7]} 22. Nxa3
{[%clk 0:02:31.4]} 22... Ra8 {[%clk 0:02:07.1]} 23. Qb2 {[%clk 0:02:30.3]} 23...
Ra7 {[%clk 0:02:01.9]} 24. Rb6 {[%clk 0:02:19.2]} 24... Qa4 {[%clk 0:01:54.6]}
25. Nb5 {[%clk 0:02:00.5]} 25... Qd1+ {[%clk 0:01:54.3]} 26. Kh2 {[%clk
0:01:56.9]} 26... Ra1 {[%clk 0:01:53.3]} 27. Nxd6 {[%clk 0:01:41.5]} 27... Qh1+
{[%clk 0:01:33]} 28. Kg3 {[%clk 0:01:42.6]} 28... Nh5+ {[%clk 0:01:34.1]} 29.
Kh4 {[%clk 0:01:42.4]} 29... Qxg2 {[%clk 0:01:31.4]} 30. Qb5 {[%clk 0:01:22.2]}
30... g5+ {[%clk 0:01:23.1]} 0-1

[Event "*** Titled Tuesday Blitz"]
[Site "Chess.com"]
[Date "2018.11.06"]
[Round "3"]
[White "Phelathegreat"]
[Black "Quiet_Desperation"]
[Result "0-1"]
[WhiteElo "2342"]
[BlackElo "2337"]
[TimeControl "180+2"]
[EndTime "13:37:01 PST"]
[Termination "Quiet_Desperation won by resignation"]

1. d4 {[%clk 0:03:01.9]} 1... Nf6 {[%clk 0:03:00.8]} 2. c4 {[%clk 0:03:02.6]}
2... e6 {[%clk 0:03:02.4]} 3. Nf3 {[%clk 0:03:03.4]} 3... Bb4+ {[%clk
0:03:03.6]} 4. Bd2 {[%clk 0:03:04.2]} 4... Qe7 {[%clk 0:03:04.4]} 5. g3 {[%clk
0:03:05.1]} 5... Nc6 {[%clk 0:03:05.7]} 6. Bg2 {[%clk 0:03:06.1]} 6... Bxd2+
{[%clk 0:03:07.3]} 7. Nbxd2 {[%clk 0:03:06.8]} 7... d6 {[%clk 0:03:08.7]} 8. O-O
{[%clk 0:03:07.4]} 8... e5 {[%clk 0:03:10.3]} 9. d5 {[%clk 0:03:04.4]} 9... Nb8
{[%clk 0:03:11.2]} 10. e4 {[%clk 0:03:06]} 10... O-O {[%clk 0:03:12.4]} 11. Ne1
{[%clk 0:03:07.6]} 11... c6 {[%clk 0:03:12.8]} 12. Nd3 {[%clk 0:03:09.2]} 12...
cxd5 {[%clk 0:03:13]} 13. cxd5 {[%clk 0:03:10.5]} 13... Bd7 {[%clk 0:03:13.9]}
14. f4 {[%clk 0:03:09.7]} 14... Bb5 {[%clk 0:03:13]} 15. Qb3 {[%clk 0:03:07.2]}
15... Bxd3 {[%clk 0:03:13.9]} 16. Qxd3 {[%clk 0:03:09.1]} 16... Na6 {[%clk
0:03:14.5]} 17. fxe5 {[%clk 0:03:09.5]} 17... Qxe5 {[%clk 0:03:14.3]} 18. Nc4
{[%clk 0:03:09.1]} 18... Qe7 {[%clk 0:03:12.7]} 19. b4 {[%clk 0:03:09.9]} 19...
Nxb4 {[%clk 0:03:12.7]} 20. Qc3 {[%clk 0:03:08.2]} 20... Na6 {[%clk 0:03:11.4]}
21. e5 {[%clk 0:03:09.3]} 21... dxe5 {[%clk 0:03:07.1]} 22. d6 {[%clk
0:03:10.4]} 22... Qd8 {[%clk 0:03:05.6]} 23. Bxb7 {[%clk 0:03:09.6]} 23... Nc5
{[%clk 0:02:51.5]} 24. Bxa8 {[%clk 0:01:31.8]} 24... Qxa8 {[%clk 0:02:47.8]} 25.
Qxe5 {[%clk 0:01:32.2]} 25... Qc6 {[%clk 0:02:40.8]} 26. Qd4 {[%clk 0:01:19]}
26... Ne6 {[%clk 0:02:38.2]} 27. Qd3 {[%clk 0:01:17.1]} 27... Ng5 {[%clk
0:02:30.8]} 28. h4 {[%clk 0:01:08.5]} 28... Qc5+ {[%clk 0:02:27.4]} 29. Kh2
{[%clk 0:01:07.8]} 29... Ng4+ {[%clk 0:02:28.4]} 30. Kg2 {[%clk 0:00:53.6]}
30... Qc6+ {[%clk 0:02:21.6]} 31. Rf3 {[%clk 0:00:46.4]} 31... Nxf3 {[%clk
0:02:22.7]} 32. Qxf3 {[%clk 0:00:48.1]} 32... Qxc4 {[%clk 0:02:23.9]} 33. d7
{[%clk 0:00:47.4]} 33... Qc2+ {[%clk 0:02:18.4]} 34. Kh3 {[%clk 0:00:47.9]}
34... h5 {[%clk 0:02:17.4]} 35. Qg2 {[%clk 0:00:44]} 35... Qf5 {[%clk
0:02:14.2]} 0-1

[Event "*** Titled Tuesday Blitz"]
[Site "Chess.com"]
[Date "2018.11.06"]
[Round "3"]
[White "Chopper1905"]
[Black "pastouche06"]
[Result "1-0"]
[WhiteElo "2672"]
[BlackElo "2436"]
[TimeControl "180+2"]
[EndTime "13:37:24 PST"]
[Termination "Chopper1905 won by resignation"]

1. d4 {[%clk 0:03:01.9]} 1... Nf6 {[%clk 0:03:00.1]} 2. c4 {[%clk 0:03:02.5]}
2... e6 {[%clk 0:03:00.2]} 3. Nf3 {[%clk 0:03:03]} 3... d5 {[%clk 0:03:01.3]} 4.
Bg5 {[%clk 0:02:58.9]} 4... Nbd7 {[%clk 0:02:54.1]} 5. e3 {[%clk 0:02:57.4]}
5... h6 {[%clk 0:02:53.8]} 6. Bh4 {[%clk 0:02:53.6]} 6... Be7 {[%clk 0:02:54.3]}
7. Nc3 {[%clk 0:02:48.3]} 7... O-O {[%clk 0:02:54.3]} 8. Rc1 {[%clk 0:02:47.4]}
8... c5 {[%clk 0:02:45.3]} 9. dxc5 {[%clk 0:02:47.4]} 9... dxc4 {[%clk
0:02:29.8]} 10. c6 {[%clk 0:02:47.2]} 10... bxc6 {[%clk 0:02:27.9]} 11. Bxc4
{[%clk 0:02:48.4]} 11... Nb6 {[%clk 0:02:22]} 12. Be2 {[%clk 0:02:39.8]} 12...
c5 {[%clk 0:02:04.6]} 13. O-O {[%clk 0:02:33.7]} 13... Bb7 {[%clk 0:02:04.9]}
14. Ne5 {[%clk 0:02:23.5]} 14... Qxd1 {[%clk 0:01:58.5]} 15. Rfxd1 {[%clk
0:02:24.1]} 15... Rfd8 {[%clk 0:02:00]} 16. f3 {[%clk 0:02:18.2]} 16... Rxd1+
{[%clk 0:01:53]} 17. Rxd1 {[%clk 0:02:17.8]} 17... Rd8 {[%clk 0:01:52.7]} 18.
Rxd8+ {[%clk 0:02:16.1]} 18... Bxd8 {[%clk 0:01:54.5]} 19. Nb5 {[%clk
0:02:11.1]} 19... Nc8 {[%clk 0:01:44.5]} 20. e4 {[%clk 0:02:03.9]} 20... g5
{[%clk 0:01:10.1]} 21. Bf2 {[%clk 0:02:04.3]} 21... Be7 {[%clk 0:01:11.3]} 22.
Nc4 {[%clk 0:01:38.4]} 22... Nd7 {[%clk 0:01:07.1]} 23. Na5 {[%clk 0:01:34.1]}
23... Ba6 {[%clk 0:00:42.6]} 24. Nc6 {[%clk 0:01:28.5]} 24... Bf6 {[%clk
0:00:37.1]} 25. b3 {[%clk 0:01:21.7]} 25... Ndb6 {[%clk 0:00:34.9]} 26. Bxc5
{[%clk 0:01:16.7]} 1-0

[Event "*** Titled Tuesday Blitz"]
[Site "Chess.com"]
[Date "2018.11.06"]
[Round "3"]
[White "Fins0905"]
[Black "TigranLPetrosyan"]
[Result "0-1"]
[WhiteElo "2575"]
[BlackElo "2823"]
[TimeControl "180+2"]
[EndTime "13:37:45 PST"]
[Termination "TigranLPetrosyan won by resignation"]

1. e4 {[%clk 0:03:01.9]} 1... g6 {[%clk 0:03:00.9]} 2. d4 {[%clk 0:03:02.6]}
2... Bg7 {[%clk 0:03:02.8]} 3. Nf3 {[%clk 0:03:02]} 3... d6 {[%clk 0:03:02.3]}
4. Bc4 {[%clk 0:03:03.1]} 4... Nf6 {[%clk 0:03:03.6]} 5. Qe2 {[%clk 0:03:03.8]}
5... O-O {[%clk 0:03:04.7]} 6. O-O {[%clk 0:03:04.7]} 6... Bg4 {[%clk
0:02:57.2]} 7. c3 {[%clk 0:02:55.7]} 7... e6 {[%clk 0:02:51.6]} 8. h3 {[%clk
0:02:51.3]} 8... Bxf3 {[%clk 0:02:52.4]} 9. Qxf3 {[%clk 0:02:53.2]} 9... d5
{[%clk 0:02:52.4]} 10. exd5 {[%clk 0:02:53.9]} 10... exd5 {[%clk 0:02:52.9]} 11.
Bb3 {[%clk 0:02:36.1]} 11... Re8 {[%clk 0:02:48]} 12. Bg5 {[%clk 0:02:35.5]}
12... c6 {[%clk 0:02:49]} 13. Nd2 {[%clk 0:02:35.6]} 13... Nbd7 {[%clk
0:02:45.7]} 14. Bc2 {[%clk 0:02:26.6]} 14... Qb6 {[%clk 0:02:31.3]} 15. Rab1
{[%clk 0:02:25.6]} 15... Re6 {[%clk 0:02:18.8]} 16. b4 {[%clk 0:02:20.5]} 16...
Rae8 {[%clk 0:02:18.4]} 17. Bd3 {[%clk 0:02:13.8]} 17... Ne4 {[%clk 0:02:10.6]}
18. Bxe4 {[%clk 0:02:07.2]} 18... dxe4 {[%clk 0:02:11.9]} 19. Qe2 {[%clk
0:02:06.9]} 19... Qc7 {[%clk 0:02:12.8]} 20. Rfd1 {[%clk 0:01:35.3]} 20... h6
{[%clk 0:02:09.4]} 21. Bh4 {[%clk 0:01:30.2]} 21... f5 {[%clk 0:02:10]} 22. Bg3
{[%clk 0:01:30.4]} 22... f4 {[%clk 0:02:10.1]} 23. Bh2 {[%clk 0:01:31.6]} 23...
g5 {[%clk 0:02:11.4]} 24. b5 {[%clk 0:01:22.4]} 24... e3 {[%clk 0:02:01.6]} 25.
fxe3 {[%clk 0:01:15.2]} 25... Rxe3 {[%clk 0:02:03.5]} 26. Qc4+ {[%clk
0:01:14.8]} 26... Kh8 {[%clk 0:02:04.9]} 27. bxc6 {[%clk 0:01:14.2]} 27... Nb6
{[%clk 0:02:02.9]} 28. Qc5 {[%clk 0:01:08.1]} 28... Qxc6 {[%clk 0:01:57.7]} 29.
c4 {[%clk 0:00:43.8]} 29... Na4 {[%clk 0:01:52.1]} 30. Qxc6 {[%clk 0:00:23.8]}
30... bxc6 {[%clk 0:01:54]} 31. Nf1 {[%clk 0:00:23.4]} 31... R3e4 {[%clk
0:01:55.3]} 32. d5 {[%clk 0:00:21.4]} 32... cxd5 {[%clk 0:01:54.9]} 33. cxd5
{[%clk 0:00:21.4]} 33... Nc3 {[%clk 0:01:55.8]} 34. g3 {[%clk 0:00:18.8]} 34...
Nxd1 {[%clk 0:01:55.8]} 35. Rxd1 {[%clk 0:00:19.4]} 35... Rd4 {[%clk 0:01:57.2]}
36. Rxd4 {[%clk 0:00:19.2]} 36... Bxd4+ {[%clk 0:01:59.1]} 37. Kg2 {[%clk
0:00:20.8]} 37... Re2+ {[%clk 0:02:00.2]} 38. Kf3 {[%clk 0:00:20.5]} 38... Rf2+
{[%clk 0:02:01.5]} 39. Ke4 {[%clk 0:00:22]} 39... Rxf1 {[%clk 0:02:03]} 40. gxf4
{[%clk 0:00:21.6]} 40... Bb6 {[%clk 0:01:57.5]} 0-1

[Event "*** Titled Tuesday Blitz"]
[Site "Chess.com"]
[Date "2018.11.06"]
[Round "3"]
[White "BIG_Pirate"]
[Black "Sordis"]
[Result "0-1"]
[WhiteElo "2387"]
[BlackElo "2279"]
[TimeControl "180+2"]
[EndTime "13:38:03 PST"]
[Termination "Sordis won by resignation"]

1. Nf3 {[%clk 0:03:01.9]} 1... Nf6 {[%clk 0:03:00.9]} 2. c4 {[%clk 0:03:02.8]}
2... g6 {[%clk 0:03:02.2]} 3. Nc3 {[%clk 0:03:03.6]} 3... Bg7 {[%clk 0:03:03.8]}
4. g3 {[%clk 0:03:05]} 4... O-O {[%clk 0:03:05.3]} 5. Bg2 {[%clk 0:03:06.4]}
5... d6 {[%clk 0:03:07.2]} 6. O-O {[%clk 0:03:07.5]} 6... e5 {[%clk 0:03:07.3]}
7. d3 {[%clk 0:03:08.1]} 7... Nc6 {[%clk 0:03:07.5]} 8. Rb1 {[%clk 0:03:09]}
8... a5 {[%clk 0:03:08.7]} 9. a3 {[%clk 0:03:10.1]} 9... h6 {[%clk 0:02:59.3]}
10. b4 {[%clk 0:03:10.9]} 10... axb4 {[%clk 0:03:00.9]} 11. axb4 {[%clk
0:03:12.7]} 11... Ne7 {[%clk 0:03:02.4]} 12. Qb3 {[%clk 0:03:09.9]} 12... Be6
{[%clk 0:03:01.7]} 13. Bb2 {[%clk 0:03:09.3]} 13... Qd7 {[%clk 0:03:01.2]} 14.
Rfc1 {[%clk 0:03:07.3]} 14... c6 {[%clk 0:02:46.5]} 15. Ra1 {[%clk 0:03:04.2]}
15... b5 {[%clk 0:02:44.6]} 16. Nd2 {[%clk 0:02:57.6]} 16... bxc4 {[%clk
0:02:42]} 17. Nxc4 {[%clk 0:02:53]} 17... Rxa1 {[%clk 0:02:39.7]} 18. Rxa1
{[%clk 0:02:53.3]} 18... Rb8 {[%clk 0:02:40.5]} 19. Ra4 {[%clk 0:02:18.6]} 19...
Ned5 {[%clk 0:02:40.1]} 20. Qa3 {[%clk 0:01:48.5]} 20... Nxc3 {[%clk 0:02:33.8]}
21. Bxc3 {[%clk 0:01:48.6]} 21... Nd5 {[%clk 0:02:32]} 22. Bd2 {[%clk
0:01:42.5]} 22... Kh7 {[%clk 0:02:13.1]} 23. Ra7 {[%clk 0:01:38.7]} 23... Qd8
{[%clk 0:02:13]} 24. h4 {[%clk 0:01:30.1]} 24... Nb6 {[%clk 0:01:47.8]} 25. Nxb6
{[%clk 0:01:14.3]} 25... Qxb6 {[%clk 0:01:46.2]} 26. Ra6 {[%clk 0:01:15.1]}
26... Qd8 {[%clk 0:01:39.9]} 27. Rxc6 {[%clk 0:01:13]} 27... d5 {[%clk 0:01:33]}
28. Qa5 {[%clk 0:01:00.9]} 28... Qxa5 {[%clk 0:01:07.1]} 29. bxa5 {[%clk
0:01:02.8]} 29... Rb2 {[%clk 0:01:08.2]} 30. Bc3 {[%clk 0:00:55]} 30... Rxe2
{[%clk 0:01:06.8]} 31. a6 {[%clk 0:00:43.4]} 31... Ra2 {[%clk 0:01:06.4]} 32.
Bf1 {[%clk 0:00:40.9]} 32... d4 {[%clk 0:01:00.8]} 33. Bb4 {[%clk 0:00:41.1]}
33... Ra1 {[%clk 0:00:54.1]} 34. Kg2 {[%clk 0:00:41.6]} 34... Bd5+ {[%clk
0:00:54.8]} 0-1

[Event "*** Titled Tuesday Blitz"]
[Site "Chess.com"]
[Date "2018.11.06"]
[Round "3"]
[White "FairChess_on_YouTube"]
[Black "dreamist"]
[Result "1-0"]
[WhiteElo "2933"]
[BlackElo "2679"]
[TimeControl "180+2"]
[EndTime "13:38:13 PST"]
[Termination "FairChess_on_YouTube won by resignation"]

1. e4 {[%clk 0:03:01.9]} 1... c5 {[%clk 0:03:00.3]} 2. Nc3 {[%clk 0:03:01.8]}
2... Nc6 {[%clk 0:03:00.7]} 3. Nf3 {[%clk 0:03:01.7]} 3... g6 {[%clk 0:02:51.9]}
4. d4 {[%clk 0:02:58]} 4... cxd4 {[%clk 0:02:52.9]} 5. Nxd4 {[%clk 0:02:59.9]}
5... Bg7 {[%clk 0:02:54.5]} 6. Nxc6 {[%clk 0:03:00.7]} 6... bxc6 {[%clk
0:02:55]} 7. Bc4 {[%clk 0:03:01.2]} 7... d6 {[%clk 0:02:15.8]} 8. O-O {[%clk
0:03:01]} 8... Nf6 {[%clk 0:02:15.4]} 9. e5 {[%clk 0:03:00.5]} 9... dxe5 {[%clk
0:02:09]} 10. Qxd8+ {[%clk 0:03:02.2]} 10... Kxd8 {[%clk 0:02:10.6]} 11. Re1
{[%clk 0:03:03]} 11... e6 {[%clk 0:02:09.6]} 12. Rxe5 {[%clk 0:03:01.5]} 12...
Nd5 {[%clk 0:02:10.5]} 13. Re2 {[%clk 0:03:01.3]} 13... Rb8 {[%clk 0:01:56.1]}
14. Na4 {[%clk 0:02:50.1]} 14... Rb4 {[%clk 0:01:53.4]} 15. Bb3 {[%clk
0:02:48.2]} 15... Ba6 {[%clk 0:01:47.4]} 16. Rd2 {[%clk 0:02:46.6]} 16... Kc7
{[%clk 0:01:47.5]} 17. Nc5 {[%clk 0:02:37]} 17... Bc8 {[%clk 0:01:47.8]} 18. c4
{[%clk 0:02:23.9]} 18... Ne7 {[%clk 0:01:45.7]} 19. Rd3 {[%clk 0:02:17.2]} 19...
Rd8 {[%clk 0:01:23]} 20. Bd2 {[%clk 0:01:54.4]} 20... Rxd3 {[%clk 0:01:23.2]}
21. Bxb4 {[%clk 0:01:54.6]} 21... Rd6 {[%clk 0:01:15.7]} 22. Ne4 {[%clk
0:01:28]} 22... Rd7 {[%clk 0:01:16.5]} 23. Nc5 {[%clk 0:01:27.5]} 23... Rd6
{[%clk 0:01:17.6]} 24. g4 {[%clk 0:01:05.5]} 24... h5 {[%clk 0:01:09.3]} 25.
gxh5 {[%clk 0:00:58.3]} 25... gxh5 {[%clk 0:01:10]} 26. Bc2 {[%clk 0:00:59.3]}
26... Nf5 {[%clk 0:01:00.8]} 27. Nb3 {[%clk 0:00:53.4]} 27... Rd4 {[%clk
0:00:56.1]} 28. Bxf5 {[%clk 0:00:48.5]} 28... Rxc4 {[%clk 0:00:53.3]} 29. Ba5+
{[%clk 0:00:48.7]} 29... Kb7 {[%clk 0:00:54.7]} 30. Bd3 {[%clk 0:00:46]} 30...
Rg4+ {[%clk 0:00:55]} 31. Kf1 {[%clk 0:00:47.1]} 31... e5 {[%clk 0:00:52.9]} 32.
Nc5+ {[%clk 0:00:46.6]} 32... Kb8 {[%clk 0:00:54.3]} 33. Rd1 {[%clk 0:00:44.5]}
33... f5 {[%clk 0:00:53.8]} 34. Be2 {[%clk 0:00:41.2]} 1-0